fUSD/lending_fUSD_20260530
["ID","MTS","AMOUNT","RATE_DAILY","PERIOD"]
[423421974,1780102241000,-1077.11354729,0.000158,2]
[423421975,1780102241000,-1077.11354729,0.000159,2]
[423421983,1780102241000,-80201.47599285,0.0001607,2]
[423421968,1780102241000,-418.0,0.0001548,2]
[423421982,1780102241000,-209.879676,0.00016,2]
[423421978,1780102241000,-418.0,0.00015986,2]
[423421950,1780102241000,-500.0,0.00014792,2]
[423421939,1780102241000,-155.57,0.00014237,2]
[423421953,1780102241000,-200.0,0.00014912,2]
[423421984,1780102241000,-1077.11354729,0.000161,2]
[423421926,1780102241000,-1272.0,0.0001404,2]
[423421932,1780102241000,-500.0,0.00014124,2]
[423421927,1780102241000,-525.0,0.0001404,2]
[423421929,1780102241000,-400.0,0.0001404,2]
[423421930,1780102241000,-418.0,0.0001404,2]
[423421931,1780102241000,-6066.0,0.0001404,2]
[423421928,1780102241000,-1225.0,0.0001404,2]
[423421934,1780102241000,-552.0,0.00014124,2]
[423421935,1780102241000,-309.0,0.000142,2]
[423421941,1780102241000,-743.66,0.00014312,2]
[423421938,1780102241000,-443.0,0.000142,2]
[423421937,1780102241000,-315.0,0.000142,2]
[423421949,1780102241000,-1600.0,0.00014667,2]
[423421936,1780102241000,-1000.0,0.000142,2]
[423421943,1780102241000,-199.47454456,0.00014394,2]
[423421942,1780102241000,-406.0981632,0.00014312,2]
[423421940,1780102241000,-689.02,0.00014312,2]
[423421955,1780102241000,-2000.0,0.00014985,2]
[423421956,1780102241000,-295.59,0.00014985,2]
[423421945,1780102241000,-500.0,0.00014398,2]
[423421944,1780102241000,-500.0,0.00014398,2]
[423421946,1780102241000,-500.0,0.00014398,2]
[423421947,1780102241000,-6453.0,0.000145,2]
[423421948,1780102241000,-1613.0,0.000145,2]
[423421954,1780102241000,-2286.63260154,0.00014975,2]
[423421951,1780102241000,-62071.07188698,0.00014901,2]
[423421952,1780102241000,-1000.0,0.00014912,2]
[423421933,1780102241000,-500.0,0.00014124,2]
[423421994,1780102241000,-500.0,0.00016438,2]
[423421995,1780102241000,-500.0,0.00016438,2]
[423421986,1780102241000,-1077.11354729,0.000164,2]
[423422020,1780102241000,-168.08,0.00016712,2]
[423422025,1780102241000,-500.0,0.00016868,2]
[423422028,1780102241000,-62071.07188698,0.00016901,2]
[423422022,1780102241000,-200.0,0.000168,3]
[423422024,1780102241000,-2269.34,0.00016842,2]
[423422026,1780102241000,-689.02,0.000169,2]
[423422027,1780102241000,-743.66,0.000169,2]
[423422023,1780102241000,-716.82,0.00016842,2]
[423422021,1780102241000,-3096.33,0.00016767,2]
[423422018,1780102241000,-339.15,0.00016679,2]
[423422031,1780102241000,-1356.0,0.0001704,2]
[423422035,1780102241000,-418.0,0.0001704,2]
[423422036,1780102241000,-6066.0,0.0001704,2]
[423422032,1780102241000,-1272.0,0.0001704,2]
[423422033,1780102241000,-525.0,0.0001704,2]
[423422034,1780102241000,-1225.0,0.0001704,2]
[423422042,1780102241000,-8726.0,0.00017544,2]
[423422038,1780102241000,-600.12,0.000171,2]
[423421993,1780102241000,-500.0,0.00016438,2]
[423422040,1780102241000,-500.0,0.00017326,2]
[423422041,1780102241000,-151.0,0.00017501,4]
[423422037,1780102241000,-603.0,0.00017075,2]
[423422039,1780102241000,-17843.94699395,0.00017151,2]
[423422045,1780102241000,-500.0,0.00017785,2]
[423422046,1780102241000,-277.57340767,0.00017794,2]
[423422044,1780102241000,-500.0,0.00017724,2]
[423422047,1780102241000,-170.98,0.000178,2]
[423422030,1780102241000,-928.0,0.0001704,2]
[423422029,1780102241000,-3549.0,0.0001704,2]
[423422043,1780102241000,-409.0,0.00017616,2]
[423422015,1780102241000,-500.0,0.00016438,2]
[423422019,1780102241000,-2223.28,0.000167,7]
[423421985,1780102241000,-1077.11354729,0.000162,2]
[423421987,1780102241000,-3709.1,0.00016438,2]
[423421988,1780102241000,-500.0,0.00016438,2]
[423421991,1780102241000,-500.0,0.00016438,2]
[423421992,1780102241000,-500.0,0.00016438,2]
[423421990,1780102241000,-500.0,0.00016438,2]
[423421996,1780102241000,-500.0,0.00016438,2]
[423422006,1780102241000,-500.0,0.00016438,2]
[423422004,1780102241000,-500.0,0.00016438,2]
[423422005,1780102241000,-500.0,0.00016438,2]
[423422000,1780102241000,-500.0,0.00016438,2]
[423421998,1780102241000,-500.0,0.00016438,2]
[423421999,1780102241000,-500.0,0.00016438,2]
[423421989,1780102241000,-500.0,0.00016438,2]
[423421997,1780102241000,-500.0,0.00016438,2]
[423422014,1780102241000,-500.0,0.00016438,2]
[423422001,1780102241000,-500.0,0.00016438,2]
[423422013,1780102241000,-500.0,0.00016438,2]
[423422017,1780102241000,-339.15,0.00016679,2]
[423422016,1780102241000,-500.0,0.00016438,2]
[423422011,1780102241000,-500.0,0.00016438,2]
[423422012,1780102241000,-500.0,0.00016438,2]
[423422008,1780102241000,-500.0,0.00016438,2]
[423422007,1780102241000,-500.0,0.00016438,2]
[423422009,1780102241000,-500.0,0.00016438,2]
[423422003,1780102241000,-500.0,0.00016438,2]
[423422002,1780102241000,-500.0,0.00016438,2]
[423422010,1780102241000,-500.0,0.00016438,2]
[423422068,1780102242000,-151.0,0.00018501,4]
[423422078,1780102242000,-600.12,0.000187,2]
[423422071,1780102242000,-5800.0,0.00018661,2]
[423422070,1780102242000,-5800.0,0.00018652,2]
[423422073,1780102242000,-5800.0,0.00018669,2]
[423422079,1780102242000,-500.0,0.00018701,2]
[423422074,1780102242000,-5800.0,0.00018678,2]
[423422076,1780102242000,-5800.0,0.00018695,2]
[423422080,1780102242000,-509.0,0.00018719,2]
[423422087,1780102242000,-151.0,0.00018727,2]
[423422081,1780102242000,-151.0,0.00018727,2]
[423422082,1780102242000,-151.0,0.00018727,2]
[423422092,1780102242000,-151.0,0.00018727,2]
[423422091,1780102242000,-151.0,0.00018727,2]
[423422086,1780102242000,-151.0,0.00018727,2]
[423422083,1780102242000,-151.0,0.00018727,2]
[423422088,1780102242000,-151.0,0.00018727,2]
[423422069,1780102242000,-154.0,0.0001863,2]
[423422084,1780102242000,-151.0,0.00018727,2]
[423422077,1780102242000,-607.71902539,0.000187,2]
[423422051,1780102242000,-165.7025412,0.00018,2]
[423422058,1780102242000,-165.7025412,0.000182,2]
[423422090,1780102242000,-2080.17592889,0.00018727,2]
[423422055,1780102242000,-881.0,0.0001805,2]
[423422048,1780102242000,-266.779,0.00017808,2]
[423422054,1780102242000,-265.0,0.00018042,2]
[423422049,1780102242000,-603.0,0.00017897,2]
[423422052,1780102242000,-607.71902539,0.00018,2]
[423422050,1780102242000,-350.0,0.00018,2]
[423422053,1780102242000,-200.0,0.00018,2]
[423422057,1780102242000,-500.0,0.00018196,2]
[423422067,1780102242000,-607.71902539,0.000185,2]
[423422059,1780102242000,-607.71902539,0.000182,2]
[423422066,1780102242000,-3709.1,0.0001841,2]
[423422056,1780102242000,-243.556846,0.00018054,2]
[423422060,1780102242000,-80201.47599285,0.00018208,2]
[423422061,1780102242000,-500.0,0.00018243,2]
[423422063,1780102242000,-42279.51,0.00018356,2]
[423422062,1780102242000,-3109.324,0.0001833,2]
[423422064,1780102242000,-165.7025412,0.000184,2]
[423422065,1780102242000,-607.71902539,0.000184,2]
[423422075,1780102242000,-5800.0,0.00018686,2]
[423422089,1780102242000,-151.0,0.00018727,2]
[423422134,1780102242000,-1481.2378076,0.00019275,2]
[423422104,1780102242000,-689.02,0.000189,2]
[423422118,1780102242000,-250.0,0.00019178,2]
[423422122,1780102242000,-238.60871557,0.00019178,2]
[423422117,1780102242000,-250.0,0.00019178,2]
[423422121,1780102242000,-230.09519341,0.00019178,2]
[423422120,1780102242000,-221.88543241,0.00019178,2]
[423422115,1780102242000,-156.83149557,0.00019178,30]
[423422123,1780102242000,-247.43723804,0.00019178,2]
[423422125,1780102242000,-266.08633524,0.00019178,2]
[423422126,1780102242000,-275.93152964,0.00019178,2]
[423422127,1780102242000,-286.14099624,0.00019178,2]
[423422135,1780102242000,-151.0,0.00019501,4]
[423422128,1780102242000,-296.7282131,0.00019178,2]
[423422130,1780102242000,-319.09232179,0.00019178,2]
[423422131,1780102242000,-20430.55,0.00019178,2]
[423422133,1780102242000,-2157.14243826,0.00019275,2]
[423422132,1780102242000,-150.0,0.0001919,3]
[423422129,1780102242000,-307.70715698,0.00019178,2]
[423422136,1780102242000,-500.0,0.00019552,2]
[423422085,1780102242000,-151.0,0.00018727,2]
[423422119,1780102242000,-264.35860867,0.00019178,2]
[423422116,1780102242000,-250.0,0.00019178,2]
[423422124,1780102242000,-256.59241585,0.00019178,2]
[423422112,1780102242000,-265.68,0.00019178,2]
[423422105,1780102242000,-743.66,0.000189,2]
[423422114,1780102242000,-500.0,0.00019178,30]
[423422099,1780102242000,-151.0,0.00018727,2]
[423422102,1780102242000,-151.0,0.00018727,2]
[423422095,1780102242000,-151.0,0.00018727,2]
[423422098,1780102242000,-151.0,0.00018727,2]
[423422100,1780102242000,-151.0,0.00018727,2]
[423422097,1780102242000,-151.0,0.00018727,2]
[423422093,1780102242000,-1428.38747117,0.00018727,2]
[423422096,1780102242000,-151.0,0.00018727,2]
[423422094,1780102242000,-151.0,0.00018727,2]
[423422103,1780102242000,-265.0,0.00018864,2]
[423422101,1780102242000,-151.0,0.00018727,2]
[423422113,1780102242000,-338.65598985,0.00019178,2]
[423422109,1780102242000,-881.0,0.0001905,2]
[423422108,1780102242000,-2286.63260154,0.00019049,2]
[423422111,1780102242000,-500.0,0.00019159,2]
[423422107,1780102242000,-195.20571002,0.00018949,2]
[423422106,1780102242000,-62071.07188698,0.00018901,2]
[423422110,1780102242000,-1545.0,0.00019148,2]
[423422149,1780102243000,-743.66,0.00019664,2]
[423422152,1780102243000,-500.0,0.00019664,2]
[423422153,1780102243000,-2269.34,0.00019664,2]
[423422150,1780102243000,-500.0,0.00019664,2]
[423422151,1780102243000,-500.0,0.00019664,2]
[423422154,1780102243000,-2269.34,0.00019664,2]
[423422147,1780102243000,-743.66,0.00019664,2]
[423422144,1780102243000,-689.02,0.00019664,2]
[423422141,1780102243000,-716.82,0.00019664,2]
[423422140,1780102243000,-500.0,0.00019617,2]
[423422145,1780102243000,-689.02,0.00019664,2]
[423422142,1780102243000,-716.82,0.00019664,2]
[423422139,1780102243000,-1691.0172044,0.00019605,2]
[423422137,1780102243000,-26485.3828056,0.00019553,2]
[423422138,1780102243000,-6660.9146907,0.00019553,2]
[423422146,1780102243000,-689.02,0.00019664,2]
[423422156,1780102243000,-200987.5205609,0.00019665,2]
[423422143,1780102243000,-716.82,0.00019664,2]
[423422155,1780102243000,-2269.34,0.00019664,2]
[423422148,1780102243000,-743.66,0.00019664,2]
[423422158,1780102243000,-652.65302674,0.00019665,2]
[423422157,1780102243000,-250.0,0.00011169,2]
[423422175,1780102243000,-946.0,0.0002,2]
[423422176,1780102243000,-1026.0,0.0002,2]
[423422174,1780102243000,-4074.0,0.0002,2]
[423422173,1780102243000,-1437.77390323,0.0002,2]
[423422170,1780102243000,-1536.04360648,0.00019823,2]
[423422169,1780102243000,-2236.95670847,0.00019823,2]
[423422171,1780102243000,-1211.0,0.0002,2]
[423422168,1780102243000,-110393.9986918,0.00019758,2]
[423422172,1780102243000,-878.0,0.0002,2]
[423422165,1780102243000,-3631.4906679,0.00019729,2]
[423422167,1780102243000,-743.66,0.00019757,2]
[423422164,1780102243000,-350.0,0.00019709,2]
[423422162,1780102243000,-2269.34,0.00019669,2]
[423422163,1780102243000,-265.0,0.00019686,2]
[423422160,1780102243000,-544811.63543955,0.00019665,2]
[423422159,1780102243000,-941.39137081,0.00019665,2]
[423422166,1780102243000,-689.02,0.00019757,2]
[423422161,1780102243000,-716.82,0.00019669,2]
[423422223,1780102244000,-163.0,0.0002058,2]
[423422220,1780102244000,-500.0,0.00020533,2]
[423422213,1780102244000,-163.41984175,0.00020371,2]
[423422218,1780102244000,-265.0,0.00020508,2]
[423422201,1780102244000,-418.0,0.0002004,2]
[423422207,1780102244000,-350.0,0.00020195,2]
[423422209,1780102244000,-17843.94699395,0.00020276,2]
[423422208,1780102244000,-1437.77390323,0.000202,2]
[423422212,1780102244000,-1592.87721992,0.00020371,2]
[423422205,1780102244000,-600.12,0.000201,2]
[423422214,1780102244000,-3709.1,0.00020381,2]
[423422215,1780102244000,-1437.77390323,0.000204,2]
[423422227,1780102244000,-187.36927211,0.000207,2]
[423422221,1780102244000,-350.0,0.00020546,2]
[423422219,1780102244000,-200.0,0.00020533,2]
[423422222,1780102244000,-9572.73,0.00020548,2]
[423422225,1780102244000,-500.0,0.00020699,2]
[423422235,1780102244000,-2000.0,0.000207,2]
[423422228,1780102244000,-463.98320411,0.000207,2]
[423422224,1780102244000,-1437.77390323,0.000206,2]
[423422204,1780102244000,-500.0,0.00020075,2]
[423422226,1780102244000,-20310.84137781,0.000207,2]
[423422233,1780102244000,-2000.0,0.000207,2]
[423422232,1780102244000,-2000.0,0.000207,2]
[423422229,1780102244000,-200.0,0.000207,10]
[423422217,1780102244000,-151.0,0.00020501,4]
[423422206,1780102244000,-500.0,0.00020192,2]
[423422192,1780102244000,-3019.0,0.0002,2]
[423422203,1780102244000,-881.0,0.0002005,2]
[423422231,1780102244000,-2000.0,0.000207,2]
[423422179,1780102244000,-2398.0,0.0002,2]
[423422184,1780102244000,-176.1921716,0.0002,2]
[423422177,1780102244000,-280.8,0.0002,2]
[423422178,1780102244000,-167.0,0.0002,2]
[423422182,1780102244000,-176.1921716,0.0002,2]
[423422181,1780102244000,-614.64028937,0.0002,2]
[423422183,1780102244000,-176.1921716,0.0002,2]
[423422180,1780102244000,-500.0,0.0002,2]
[423422186,1780102244000,-176.19217161,0.0002,2]
[423422185,1780102244000,-176.1921716,0.0002,2]
[423422188,1780102244000,-1729.0,0.0002,2]
[423422202,1780102244000,-6066.0,0.0002004,2]
[423422187,1780102244000,-1373.0,0.0002,2]
[423422190,1780102244000,-200.0,0.0002,2]
[423422194,1780102244000,-1422.0,0.0002,2]
[423422195,1780102244000,-3549.0,0.0002004,2]
[423422189,1780102244000,-1896.54,0.0002,2]
[423422191,1780102244000,-150.0,0.0002,20]
[423422193,1780102244000,-3101.0,0.0002,2]
[423422196,1780102244000,-928.0,0.0002004,2]
[423422197,1780102244000,-1356.0,0.0002004,2]
[423422210,1780102244000,-80201.47599285,0.00020347,2]
[423422211,1780102244000,-2319.72410669,0.00020371,2]
[423422200,1780102244000,-1225.0,0.0002004,2]
[423422199,1780102244000,-525.0,0.0002004,2]
[423422198,1780102244000,-1272.0,0.0002004,2]
[423422230,1780102244000,-2000.0,0.000207,2]
[423422216,1780102244000,-350.0,0.00020424,2]
[423422236,1780102244000,-385.70687661,0.000207,2]
[423422262,1780102244000,-3019.0,0.00021,2]
[423422269,1780102244000,-3096.33,0.00021205,2]
[423422265,1780102244000,-500.0,0.00021015,2]
[423422267,1780102244000,-1437.77390323,0.000212,2]
[423422268,1780102244000,-1852.74,0.000212,7]
[423422266,1780102244000,-881.0,0.0002105,2]
[423422274,1780102244000,-208.0,0.00021353,2]
[423422272,1780102244000,-350.0,0.00021282,3]
[423422283,1780102244000,-724.896387,0.000217,2]
[423422275,1780102244000,-1437.77390323,0.000214,2]
[423422276,1780102244000,-2494.55939288,0.00021467,2]
[423422273,1780102244000,-208.0,0.00021328,2]
[423422271,1780102244000,-693.2,0.00021273,2]
[423422277,1780102244000,-1712.93078311,0.00021467,2]
[423422280,1780102244000,-151.0,0.00021501,4]
[423422278,1780102244000,-58418.47841133,0.000215,2]
[423422282,1780102244000,-1437.77390323,0.000217,2]
[423422279,1780102244000,-225.46885825,0.000215,2]
[423422284,1780102244000,-724.896387,0.000217,2]
[423422288,1780102244000,-2000.0,0.0002171,7]
[423422286,1780102244000,-724.896387,0.000217,2]
[423422287,1780102244000,-350.0,0.00021707,2]
[423422290,1780102244000,-363.58443177,0.00021802,7]
[423422292,1780102244000,-301.87915129,0.000219,2]
[423422289,1780102244000,-1896.54,0.00021763,2]
[423422234,1780102244000,-2000.0,0.000207,2]
[423422281,1780102244000,-350.0,0.00021665,3]
[423422263,1780102244000,-3101.0,0.00021,2]
[423422285,1780102244000,-724.896387,0.000217,2]
[423422264,1780102244000,-1422.0,0.00021,2]
[423422237,1780102244000,-194.674,0.000207,3]
[423422240,1780102244000,-1437.77390323,0.000208,2]
[423422238,1780102244000,-1165.60435909,0.000207,2]
[423422247,1780102244000,-2405.55389863,0.00020919,2]
[423422239,1780102244000,-709.51610862,0.00020703,2]
[423422243,1780102244000,-743.66,0.000209,2]
[423422242,1780102244000,-689.02,0.000209,2]
[423422248,1780102244000,-1651.81367706,0.00020919,2]
[423422241,1780102244000,-300.0,0.000208,10]
[423422246,1780102244000,-2269.34,0.00020915,2]
[423422245,1780102244000,-716.82,0.00020915,2]
[423422249,1780102244000,-1210.7017322,0.00021,2]
[423422244,1780102244000,-62071.07188698,0.000209,2]
[423422250,1780102244000,-199.81901141,0.00021,2]
[423422270,1780102244000,-34663.14,0.00021273,2]
[423422260,1780102244000,-1373.0,0.00021,2]
[423422291,1780102244000,-424.55604486,0.000219,2]
[423422253,1780102244000,-878.0,0.00021,2]
[423422258,1780102244000,-167.0,0.00021,2]
[423422257,1780102244000,-1026.0,0.00021,2]
[423422259,1780102244000,-2398.0,0.00021,2]
[423422255,1780102244000,-4074.0,0.00021,2]
[423422254,1780102244000,-1437.77390323,0.00021,2]
[423422251,1780102244000,-9202.471814,0.00021,2]
[423422252,1780102244000,-10506.2699925,0.00021,2]
[423422256,1780102244000,-946.0,0.00021,2]
[423422261,1780102244000,-1729.0,0.00021,2]
[423422309,1780102245000,-174.72474418,0.00021918,2]
[423422293,1780102245000,151.0,0.00039398,120]
[423422296,1780102245000,-136.14282858,0.0001104,2]
[423422295,1780102245000,-3501.85717142,0.0001104,2]
[423422297,1780102245000,-1951.60307142,0.0001404,2]
[423422298,1780102245000,-794.30761346,0.0001404,2]
[423422299,1780102245000,-892.08931512,0.0001404,2]
[423422302,1780102245000,-151.0,0.000217,2]
[423422303,1780102245000,-711.33870708,0.000219,2]
[423422305,1780102245000,-200.41906843,0.00021911,2]
[423422308,1780102245000,-648.62,0.00021918,2]
[423422304,1780102245000,-250.99703324,0.00021911,2]
[423422301,1780102245000,-1596.65811491,0.000183,2]
[423422300,1780102245000,-1077.1135,0.00016399,2]
[423422306,1780102245000,-5000.0,0.00021918,2]
[423422307,1780102245000,-1006.5,0.00021918,2]
[423422318,1780102246000,-841.6533914,0.00022,10]
[423422311,1780102246000,-689.02,0.00021999,2]
[423422315,1780102246000,-2917.89902866,0.00022,10]
[423422317,1780102246000,-3889.6109635,0.00022,10]
[423422314,1780102246000,-1000.0,0.00022,10]
[423422313,1780102246000,-500.0,0.00021999,2]
[423422312,1780102246000,-743.66,0.00021999,2]
[423422310,1780102246000,-500.0,0.00021918,7]
[423422316,1780102246000,-3192.49000784,0.00022,10]
[423422319,1780102247000,151.0,0.00039398,120]
[423422339,1780102248000,-0.50521562,0.0001704,2]
[423422355,1780102248000,-1373.0,0.00022,2]
[423422341,1780102248000,-1000.0,0.00019325,2]
[423422342,1780102248000,-3638.0,0.0002004,2]
[423422345,1780102248000,-10000.0,0.00022,10]
[423422343,1780102248000,-151.0,0.00021999,2]
[423422346,1780102248000,-10000.0,0.00022,10]
[423422344,1780102248000,-9158.3466086,0.00022,10]
[423422348,1780102248000,-3504.2,0.00022,10]
[423422349,1780102248000,-878.0,0.00022,2]
[423422347,1780102248000,-7834.75,0.00022,10]
[423422354,1780102248000,-2398.0,0.00022,2]
[423422350,1780102248000,-4074.0,0.00022,2]
[423422340,1780102248000,-3637.49478438,0.0001704,2]
[423422351,1780102248000,-946.0,0.00022,2]
[423422366,1780102248000,-881.0,0.0002205,2]
[423422356,1780102248000,-1729.0,0.00022,2]
[423422353,1780102248000,-167.0,0.00022,2]
[423422365,1780102248000,-200.41906843,0.00022043,2]
[423422369,1780102248000,-208.0,0.0002215,2]
[423422370,1780102248000,-250.99703324,0.00022174,7]
[423422364,1780102248000,-250.99703324,0.00022043,2]
[423422368,1780102248000,-444.85,0.00022067,2]
[423422362,1780102248000,-1776.30922209,0.00022015,2]
[423422367,1780102248000,-229.79723601,0.00022063,60]
[423422358,1780102248000,-3019.0,0.00022,2]
[423422357,1780102248000,-708.86,0.00022,2]
[423422360,1780102248000,-1422.0,0.00022,2]
[423422359,1780102248000,-3101.0,0.00022,2]
[423422352,1780102248000,-1026.0,0.00022,2]
[423422363,1780102248000,-200.0,0.00022024,2]
[423422361,1780102248000,-2586.85809042,0.00022015,2]
[423422416,1780102249000,-946.0,0.00023,2]
[423422406,1780102249000,-250.99703324,0.00022833,14]
[423422407,1780102249000,-62071.07188698,0.000229,2]
[423422405,1780102249000,-200.41906843,0.00022833,14]
[423422401,1780102249000,-200.41906843,0.00022702,14]
[423422404,1780102249000,-200.0,0.00022811,2]
[423422402,1780102249000,-250.99703324,0.00022702,14]
[423422400,1780102249000,-34663.14,0.00022691,2]
[423422408,1780102249000,-200.41906843,0.00022965,30]
[423422403,1780102249000,-600.12,0.000228,7]
[423422411,1780102249000,-689.02,0.00022999,2]
[423422420,1780102249000,-1373.0,0.00023,2]
[423422415,1780102249000,-4074.0,0.00023,2]
[423422412,1780102249000,-743.66,0.00022999,2]
[423422409,1780102249000,-250.99703324,0.00022965,30]
[423422410,1780102249000,-208.0,0.00022972,2]
[423422413,1780102249000,-2500.0,0.00023,20]
[423422417,1780102249000,-1026.0,0.00023,2]
[423422399,1780102249000,-2269.34,0.00022691,2]
[423422418,1780102249000,-167.0,0.00023,2]
[423422419,1780102249000,-2398.0,0.00023,2]
[423422421,1780102249000,-1729.0,0.00023,2]
[423422428,1780102249000,-1356.0,0.0002304,2]
[423422422,1780102249000,-3019.0,0.00023,2]
[423422414,1780102249000,-878.0,0.00023,2]
[423422397,1780102249000,-1109.07173699,0.0002266,2]
[423422389,1780102249000,-266.6207616,0.00022501,4]
[423422395,1780102249000,-168.08,0.00022603,2]
[423422425,1780102249000,-300.0,0.00023039,2]
[423422371,1780102249000,-200.41906843,0.00022174,7]
[423422372,1780102249000,-208.0,0.00022175,2]
[423422373,1780102249000,-250.99703324,0.00022306,7]
[423422376,1780102249000,-153.19815734,0.00022378,60]
[423422374,1780102249000,-200.41906843,0.00022306,7]
[423422375,1780102249000,-3709.1,0.00022353,2]
[423422377,1780102249000,-250.99703324,0.00022438,7]
[423422378,1780102249000,-200.41906843,0.00022438,7]
[423422380,1780102249000,-488.48,0.00022466,2]
[423422379,1780102249000,-255.33026224,0.00022458,60]
[423422383,1780102249000,-373.76,0.00022466,2]
[423422381,1780102249000,-452.03,0.00022466,2]
[423422382,1780102249000,-230.48,0.00022466,2]
[423422384,1780102249000,-447.71,0.00022466,2]
[423422386,1780102249000,-933.75,0.00022466,2]
[423422392,1780102249000,-200.41906843,0.0002257,14]
[423422388,1780102249000,-80201.47599285,0.00022485,2]
[423422387,1780102249000,-1464.37,0.00022466,2]
[423422385,1780102249000,-476.75,0.00022466,2]
[423422390,1780102249000,-2682.57183977,0.00022563,2]
[423422393,1780102249000,-250.99703324,0.0002257,14]
[423422391,1780102249000,-1842.0326633,0.00022563,2]
[423422394,1780102249000,-609.14054924,0.00022589,2]
[423422396,1780102249000,-444.85,0.00022619,2]
[423422398,1780102249000,-716.82,0.00022691,2]
[423422427,1780102249000,-928.0,0.0002304,2]
[423422452,1780102249000,-200.0,0.00023599,2]
[423422426,1780102249000,-3549.0,0.0002304,2]
[423422460,1780102249000,-150.0,0.00023876,7]
[423422454,1780102249000,-150.0,0.00023615,2]
[423422459,1780102249000,-485.88774607,0.00023833,2]
[423422455,1780102249000,-219.0,0.00023615,2]
[423422457,1780102249000,-1980.8648231,0.00023659,2]
[423422458,1780102249000,-2000.0,0.00023743,7]
[423422464,1780102249000,-170.23480652,0.00023991,2]
[423422463,1780102249000,-161.10138329,0.00023876,7]
[423422465,1780102249000,-300.0,0.00023999,2]
[423422466,1780102249000,-500.0,0.00023999,2]
[423422468,1780102249000,-27180.26776259,0.00024,2]
[423422470,1780102249000,-878.0,0.00024,2]
[423422473,1780102249000,-1026.0,0.00024,2]
[423422469,1780102249000,-165.0,0.00024,7]
[423422467,1780102249000,-3600.0,0.00024,2]
[423422471,1780102249000,-4074.0,0.00024,2]
[423422474,1780102249000,-167.0,0.00024,2]
[423422476,1780102249000,-1373.0,0.00024,2]
[423422475,1780102249000,-2398.0,0.00024,2]
[423422480,1780102249000,-1422.0,0.00024,2]
[423422477,1780102249000,-1729.0,0.00024,2]
[423422478,1780102249000,-3019.0,0.00024,2]
[423422481,1780102249000,-340.949178,0.00024062,2]
[423422479,1780102249000,-3101.0,0.00024,2]
[423422423,1780102249000,-3101.0,0.00023,2]
[423422456,1780102249000,-2884.75459676,0.00023659,2]
[423422461,1780102249000,-150.0,0.00023876,7]
[423422472,1780102249000,-946.0,0.00024,2]
[423422482,1780102249000,-427.42,0.0002411,2]
[423422462,1780102249000,-150.0,0.00023876,7]
[423422424,1780102249000,-1422.0,0.00023,2]
[423422430,1780102249000,-525.0,0.0002304,2]
[423422429,1780102249000,-1272.0,0.0002304,2]
[423422431,1780102249000,-1225.0,0.0002304,2]
[423422434,1780102249000,-3638.0,0.0002304,2]
[423422433,1780102249000,-6066.0,0.0002304,2]
[423422437,1780102249000,-250.99703324,0.00023097,30]
[423422439,1780102249000,-1910.18787185,0.00023111,2]
[423422435,1780102249000,-895.79598337,0.0002305,2]
[423422436,1780102249000,-200.41906843,0.00023097,30]